[Event "Israeli Team-ch 2023"]
[Site "Petah Tikva"]
[Date "2023.02.10"]
[Round "7.3"]
[White "Aizenberg, Benny"]
[Black "Sokolovsky, Yahli"]
[Result "0-1"]
[ECO "C95"]
[WhiteElo "2348"]
[BlackElo "2431"]
[Annotator "TA"]
[PlyCount "198"]
[EventDate "2023.01.13"]
[EventCountry "ISR"]
[SourceTitle "playchess.com"]
[Source "ChessBase"]
[SourceQuality "1"]
[TimeControl "40/5400+30:1800+30"]

{[%evp 22,196,36,0,35,-10,0,-66,13,26,25,8,32,39,41,46,51,60,66,53,72,46,70,67,59,55,66,46,53,36,36,33,119,97,132,14,13,0,0,15,104,85,73,0,0,0,0,0,2,0,0,0,0,0,19,14,72,68,61,0,0,0,0,0,0,0,0,0,0,-18,0,-21,-21,-509,-496,-522,-522,-522,-522,-522,-522,-500,-504,-878,-824,-769,-737,-708,-293,-302,-285,-289,-282,-504,-282,-275,-243,-242,-229,-243,-246,-223,-210,-555,-226,-181,-181,-188,-185,-300,-188,-207,0,-188,0,-486,-462,-1178,-1178,-1101,-1095,-984,-922,-29959,-29963,-29961,-29964,-29962,-29967,-29966,-29966,-29966,-29967,-29968,-29969,-29974,-29975,-29975,-29975,-29974,-29976,-29977,-29975,-29975,-29971,-29981,-29982,-29982,-29983,-29983,-29984,-29984,-29985,-29985,-29986,-29987,-29988,-29988,-29989,-29989,-29989,-29989,-29989,-29990,-29990,-29990,-29991,-29994,-29991,-29995,-29996,-29996,-29997,-29997,-29998,-29998,-29999]} 1. e4 {[%emt 0:00:25]} e5 {[%emt 0:00:04]} 2. Nf3 {[%emt 0:00:04]} Nc6 {[%emt 0:00:05]} 3. Bb5 {[%emt 0:00:05]} a6 {[%emt 0:00:05]} 4. Ba4 {[%emt 0:00:04]} Nf6 {[%emt 0:00:06]} 5. O-O {[%emt 0:00:03]} Be7 {[%emt 0:00:20]} 6. Re1 {[%emt 0:00:07]} b5 {[%emt 0:00:24]} 7. Bb3 {[%emt 0:00:01]} d6 {[%emt 0:00:22]} 8. c3 {[%emt 0:00:06]} O-O {[%emt 0:00:06]} 9. h3 {[%emt 0:00:01]} Nb8 {[%emt 0:00:34]} 10. d4 {[%emt 0:00:13]} Nbd7 {[%emt 0:00:05]} 11. c4 {[%emt 0:01:06]} c6 {[%emt 0:00:36]} 12. c5 {[%emt 0:05:32]} h6 {[%emt 0:19:46] C95: Closed Ruy Lopez: Breyer Variation with 10 d4.} 13. cxd6 {[%emt 0:14:26]} Bxd6 {[%emt 0:00:05] [#]} 14. Nh4 $146 {[%emt 0:00:04]} (14. Be3 $11) ({Predecessor:} 14. Nbd2 c5 15. dxe5 Bxe5 16. Nf1 c4 17. Bc2 Bb7 18. Nxe5 Nxe5 19. Be3 Re8 20. f3 Qxd1 21. Raxd1 Rad8 22. Ng3 Rxd1 23. Rxd1 Re6 24. Nf5 Ne8 25. Kf2 Nc6 26. a3 Ne7 27. Rd7 {1-0 Lindblom,P-Prytz,O NOR-ch corr Norway 1965}) 14... Bb4 {[%emt 0:21:26]} (14... exd4 $15 15. Qxd4 Ne5) 15. Bd2 $11 {[%emt 0:06:21]} Bxd2 {[%emt 0:01:18]} 16. Nxd2 {[%emt 0:02:40][%cal Bb1d2,Bd2b3,Bb3c5][%mdl 32] Strongly threatening Rc1.} exd4 {[%emt 0:10:33]} 17. e5 {[%emt 0:01:09]} Nd5 {[%emt 0:00:54]} 18. Bxd5 {[%emt 0:00:54]} cxd5 {[%emt 0:00:13]} (18... Qxh4 19. Bxc6 Ra7 20. Nf3 $16) 19. Nhf3 {[%emt 0:00:06]} Nc5 {[%emt 0:06:32]} 20. Nb3 {[%emt 0:01:41]} Na4 {[%emt 0:07:41]} 21. Qxd4 {[%emt 0:01:21]} (21. Nfxd4 Nxb2 22. Qe2 Nc4 $15) 21... Be6 {[%emt 0:00:06] Black is weak on the dark squares} 22. Rac1 {[%emt 0:00:21]} Rc8 {[%emt 0:02:56]} 23. Rxc8 {[%emt 0:00:28]} Qxc8 {[%emt 0:00:04]} 24. Rc1 {[%emt 0:00:05] Wards off Qc2} Qb8 {[%emt 0:01:55]} 25. Nc5 {[%emt 0:02:03]} Rc8 {[%emt 0:00:37]} 26. b3 {[%emt 0:00:45]} (26. Nxa6 $2 Rxc1+ 27. Kh2 Qb6 28. Qxb6 Nxb6 $19) 26... Nb6 {[%emt 0:03:42]} (26... Nxc5 $14 27. Rxc5 Rxc5 28. Qxc5 Qf8 29. Qxf8+ Kxf8) 27. Rc3 {[%emt 0:05:26]} (27. Nxa6 $2 Rxc1+ 28. Kh2 Qa7 $19) 27... a5 {[%emt 0:03:34]} 28. Ne1 {[%emt 0:07:03]} ({Better is} 28. Nxe6 $16 fxe6 29. Rxc8+ Nxc8 30. Qg4) 28... b4 {[%emt 0:02:05]} 29. Rg3 {[%emt 0:00:41] Threatens to win with Nxe6.} Qc7 {[%emt 0:02:26]} 30. Ned3 {[%emt 0:00:29]} Bf5 {[%emt 0:02:28]} (30... Nd7 $11 31. Nxd7 Qxd7) 31. Qh4 {[%emt 0:03:50]} Kh7 {[%emt 0:06:13]} 32. Rf3 {[%emt 0:05:15]} (32. Rxg7+ $1 $16 Kxg7 33. Qf6+ Kf8 34. Qxf5) 32... Bg6 $1 {[%emt 0:01:16]} 33. Qg4 {[%emt 0:04:58]} Qe7 {[%emt 0:02:43]} 34. Qd4 {[%emt 0:08:12]} Rc6 {[%emt 0:01:59]} 35. Rg3 {[%emt 0:01:22][%cal Oe5e6]} Bf5 {[%emt 0:01:56]} 36. Kh2 {[%emt 0:01:40]} Qc7 {[%emt 0:01:46]} 37. e6 {[%emt 0:03:52]} fxe6 {[%emt 0:01:01][%cal Oe6e5]} 38. Nd7 {[%emt 0:00:31][%csl Gg3][%cal Rd4g7][%mdl 64] Decoy. Excellent horsemanship.} Qxg3+ {[%emt 0:00:53]} 39. fxg3 $16 {[%emt 0:02:54]} (39. Kxg3 Nxd7 40. Qa7 Nf6 $11) 39... Nxd7 {[%emt 0:00:03]} 40. Nf2 {[%emt 0:02:30]} (40. g4 $14 Be4 41. Nf2) 40... Rc2 {[%emt 0:00:44]} 41. g4 {[%emt 0:31:37]} Bg6 {[%emt 0:01:20] ...Nf6 is the strong threat.} 42. h4 {[%emt 0:00:00] aiming for h5.} Nf6 {[%emt 0:10:24]} 43. g5 {[%emt 0:00:00]} Rxf2 {[%emt 0:02:22][%mdl 64] Remove Defender, Decoy} 44. gxf6 $1 {[%emt 0:00:00]} Rxf6 $11 {[%emt 0:00:03][%mdl 4096] Endgame KQ-KRB} (44... Rxa2 {leads to mate.} 45. Qa7 (45. fxg7 Be4 $11) (45. fxg7 Be4 $11)) 45. Qa7 {[%emt 0:00:00]} Be4 {[%emt 0:01:34]} 46. Qxa5 {[%emt 0:00:00]} Rf2 {[%emt 0:00:13]} 47. Kg3 {[%emt 0:00:00][%mdl 8192]} (47. Qxb4 $11 {and White stays safe.} Rxa2 48. Qd6) 47... Rxg2+ $19 {[%emt 0:00:40]} 48. Kf4 {[%emt 0:00:00] [#]} Bf5 $1 {[%emt 0:01:40]} 49. Ke5 {[%emt 0:00:00]} Re2+ {[%emt 0:00:29]} 50. Kd4 {[%emt 0:00:00]} Re4+ {[%emt 0:03:02]} 51. Kc5 {[%emt 0:00:00]} Rxh4 {[%emt 0:02:34]} 52. a4 {[%emt 0:00:00]} (52. Kd6 $142 Re4 53. a4 bxa3 54. Qxa3) 52... bxa3 {[%emt 0:00:28]} 53. Qxa3 {[%emt 0:00:00]} d4 {[%emt 0:00:38]} 54. Qb4 {[%emt 0:00:00]} Rh3 {[%emt 0:01:00]} (54... Re4 $142 55. Qd2 d3) 55. Qxd4 {[%emt 0:00:00]} Rxb3 {[%emt 0:00:07]} 56. Qh4 {[%emt 0:00:00]} Rd3 {[%emt 0:00:18]} 57. Kc6 $2 {[%emt 0:00:00]} (57. Qe7) 57... Kg6 {[%emt 0:00:13]} 58. Qe7 {[%emt 0:00:00]} h5 {[%emt 0:00:52]} 59. Qe8+ {[%emt 0:00:00]} Kg5 {[%emt 0:00:25] Hoping for ...Kg4.} 60. Qe7+ {[%emt 0:00:00] [#]} Kh6 $1 {[%emt 0:00:19]} 61. Kc7 {[%emt 0:00:00]} Rd4 {[%emt 0:01:06]} 62. Qc5 $2 {[%emt 0:00:21] Wards off Rc4} (62. Qe8) 62... Rd5 {[%emt 0:00:01]} (62... Re4 $142 63. Qc1+ Kg6) 63. Qe7 {[%emt 0:01:52]} Kh7 {[%emt 0:00:11]} 64. Qf7 {[%emt 0:00:45]} Bg4 {[%emt 0:00:42] White must now prevent ...Rf5.} 65. Qe7 {[%emt 0:00:05]} (65. Qf4 $142) 65... Kh6 {[%emt 0:04:16]} 66. Qe8 {[%emt 0:00:46]} Bf5 {[%emt 0:00:27]} 67. Qe7 $1 {[%emt 0:00:40]} Rd4 $2 {[%emt 0:00:59]} (67... Rd1 68. Qb4 Rd3) 68. Qc5 $1 {[%emt 0:00:09]} Rg4 {[%emt 0:01:59] ...Kh7 would be deadly.} 69. Qf8 {[%emt 0:02:43]} (69. Qc1+ $142 Kh7 70. Kd6) 69... Kh7 {[%emt 0:00:49]} 70. Qe8 {[%emt 0:02:25]} Rg6 {[%emt 0:00:04]} 71. Qe7 {[%emt 0:00:07]} Rf6 {[%emt 0:00:04]} 72. Qb4 {[%emt 0:00:18]} e5 {[%emt 0:01:29]} 73. Qh4 {[%emt 0:00:58]} Kh6 {[%emt 0:00:08]} 74. Qh2 {[%emt 0:00:59]} Re6 {[%emt 0:00:32]} 75. Qd2+ {[%emt 0:00:06]} Kh7 {[%emt 0:00:25]} 76. Qd5 {[%emt 0:01:21]} h4 {[%emt 0:01:11]} 77. Qf3 {[%emt 0:00:08]} g6 {[%emt 0:00:06]} 78. Qf2 {[%emt 0:03:26]} h3 {[%emt 0:00:11]} 79. Qh4+ {[%emt 0:00:08]} Kg7 {[%emt 0:00:11]} 80. Qd8 {[%emt 0:00:05]} e4 {[%emt 0:02:10]} 81. Qd4+ {[%emt 0:00:14]} Kh7 {[%emt 0:00:51]} 82. Qd7+ {[%emt 0:00:12]} Kh6 {[%emt 0:00:10]} 83. Qd8 {[%emt 0:00:04]} e3 {[%emt 0:00:47]} 84. Qh4+ {[%emt 0:00:34]} Kg7 {[%emt 0:00:01]} 85. Qd4+ {[%emt 0:00:07]} Kf7 {[%emt 0:00:12]} 86. Qh4 {[%emt 0:01:09]} e2 {[%emt 0:00:38]} 87. Qh7+ {[%emt 0:00:03]} Kf6 {[%emt 0:00:09]} 88. Qh4+ {[%emt 0:00:57]} Kg7 {[%emt 0:00:06]} 89. Qe1 {[%emt 0:03:41]} h2 {[%emt 0:00:23]} 90. Qa1+ {[%emt 0:02:40]} Kh7 {[%emt 0:01:08]} 91. Qe1 {[%emt 0:00:04]} Kg8 {[%emt 0:00:06]} 92. Kd8 {[%emt 0:01:25] [#]} h1=Q $1 {[%emt 0:01:22][%mdl 64] Promotion} 93. Qxh1 {[%emt 0:00:17]} e1=Q {[%emt 0:00:13]} 94. Qd5 {[%emt 0:00:07]} Qe5 {[%emt 0:01:06]} 95. Qb3 {[%emt 0:00:06]} Qd6+ {[%emt 0:00:14]} 96. Kc8 {[%emt 0:00:02]} Qf8+ {[%emt 0:00:08]} 97. Kb7 {[%emt 0:00:08]} Qf7+ {[%emt 0:00:05]} 98. Ka8 {[%emt 0:00:04]} Re8+ {[%emt 0:00:15]} 99. Qb8 {[%emt 0:00:02]} Be4# {[%emt 0:00:11] Weighted Error Value: White=0.39/Black=0.28 (precise)} 0-1

[Event "Israeli Team-ch 2023"]
[Site "Petah Tikva"]
[Date "2023.02.10"]
[Round "7.5"]
[White "Solomon, Asif"]
[Black "Vydeslaver, Alik"]
[Result "1/2-1/2"]
[ECO "A41"]
[WhiteElo "2272"]
[BlackElo "2385"]
[Annotator "TA"]
[PlyCount "37"]
[EventDate "2023.01.13"]
[EventCountry "ISR"]
[SourceTitle "playchess.com"]
[Source "ChessBase"]
[SourceQuality "1"]
[TimeControl "40/5400+30:1800+30"]

{[%evp 9,37,26,29,8,45,4,39,23,34,40,33,37,42,48,43,14,29,12,43,33,27,0,0,0,0,0,-6,-25,12,4]} 1. d4 {[%emt 0:00:19]} d6 {[%emt 0:02:18][%cal Bd7d6,Bd6e5][%mdl 32]} 2. g3 {[%emt 0:00:38]} e5 {[%emt 0:00:33]} 3. dxe5 {[%emt 0:01:26]} dxe5 {[%emt 0:00:10]} 4. Qxd8+ {[%emt 0:00:05]} Kxd8 {[%emt 0:00:04]} 5. Bg2 {[%emt 0:01:37]} c6 {[%emt 0:01:28]} 6. f4 {[%emt 0:03:02] A41: 1 d4 d6: Tartakower System and Modern Defence.} Nf6 {[%emt 0:06:38]} 7. Nc3 {[%emt 0:15:54]} exf4 {[%emt 0:18:16]} 8. Bxf4 {[%emt 0:01:43] White is slightly better.} Be6 {[%emt 0:03:07]} 9. Nf3 {[%emt 0:11:15]} Nbd7 {[%emt 0:02:26]} 10. Ng5 {[%emt 0:02:24]} Bb4 {[%emt 0:01:05]} 11. Nxe6+ {[%emt 0:03:15]} fxe6 {[%emt 0:00:01] [#]} 12. Bd2 $146 {[%emt 0:01:01] This pair of bishops is nice.} ({Predecessor:} 12. O-O-O Ke7 13. a3 Bxc3 14. Bd6+ Kf7 15. bxc3 Nb6 16. e4 Nc4 17. e5 Rhd8 18. Bh3 Nxd6 19. exd6 {½-½ Benjamin,J (2556)-Christiansen,L (2585) USA tt ICC INT 2010 (5)}) 12... Nd5 {[%emt 0:01:45]} 13. Rf1 {[%emt 0:03:39]} N7f6 {[%emt 0:06:54]} 14. O-O-O {[%emt 0:04:34] Strongly threatening e4.} Ke8 {[%emt 0:06:04]} 15. h3 {[%emt 0:14:59]} Nxc3 {[%emt 0:02:18]} 16. bxc3 {[%emt 0:00:08]} Bc5 {[%emt 0:02:13]} 17. c4 {[%emt 0:00:18]} Rd8 {[%emt 0:01:35]} 18. g4 {[%emt 0:01:09]} h6 {[%emt 0:05:36]} 19. Bc3 {[%emt 0:05:29] Weighted Error Value: White=0.15 (very precise) /Black=0.12 (very precise)} 1/2-1/2

[Event "Israeli Team-ch 2023"]
[Site "Petah Tikva"]
[Date "2023.02.10"]
[Round "7.8"]
[White "Fridman, Daniel"]
[Black "Bronstein, Or"]
[Result "0-1"]
[ECO "D78"]
[WhiteElo "2595"]
[BlackElo "2447"]
[Annotator "TA"]
[PlyCount "68"]
[EventDate "2023.01.13"]
[EventCountry "ISR"]
[SourceTitle "playchess.com"]
[Source "ChessBase"]
[SourceQuality "1"]
[TimeControl "40/5400+30:1800+30"]

{[%evp 16,68,20,4,17,0,0,-2,0,0,6,0,0,0,8,0,27,33,33,25,22,0,0,0,22,20,26,0,0,0,0,0,0,0,0,0,0,0,0,-1,-5,-44,0,-13,-16,-41,-35,-410,-388,-864,-854,-875,-856,-29987,-29988]} 1. Nf3 {[%emt 0:00:36]} d5 {[%emt 0:02:08]} 2. g3 {[%emt 0:00:07]} g6 {[%emt 0:04:00]} 3. Bg2 {[%emt 0:00:06]} Bg7 {[%emt 0:00:04]} 4. d4 {[%emt 0:00:25]} Nf6 {[%emt 0:00:13]} 5. O-O {[%emt 0:00:27]} O-O {[%emt 0:00:40]} 6. c4 {[%emt 0:00:25]} c6 {[%emt 0:00:34]} 7. Nbd2 {[%emt 0:01:39]} a5 {[%emt 0:01:31]} 8. b3 {[%emt 0:08:46]} Bf5 {[%emt 0:00:37]} 9. Bb2 {[%emt 0:01:23]} b5 {[%emt 0:12:47] D78: Fianchetto Grünfeld: 6 0-0 c6.} 10. Ne5 {[%emt 0:13:23]} Qb6 {[%emt 0:03:04]} 11. cxd5 {[%emt 0:04:48]} cxd5 {[%emt 0:00:16] The position is equal.} 12. Rc1 {[%emt 0:00:07] [#]} Nbd7 $146 {[%emt 0:12:44]} ({Predecessor:} 12... Na6 13. e3 Rac8 14. Qe2 Nb4 15. a3 Na2 16. Rxc8 Rxc8 17. e4 dxe4 18. Nxe4 Nxe4 19. Bxe4 {1-0 Fressinet,L (2702)-Bauer,C (2664) Villandry FFE GP KO 4th rapid 2012 (1.1)}) 13. e3 {[%emt 0:08:05]} Rac8 {[%emt 0:11:16] Prevents Nc6} 14. Qe2 {[%emt 0:04:16]} h5 {[%emt 0:11:50]} 15. h3 {[%emt 0:02:00]} Nxe5 {[%emt 0:06:17]} 16. dxe5 {[%emt 0:00:09] [#] Bd4 would be deadly.} Ne4 $1 {[%emt 0:00:08]} 17. Nxe4 {[%emt 0:07:32]} Bxe4 {[%emt 0:00:01]} 18. Qd2 {[%emt 0:05:25]} Bxg2 {[%emt 0:02:24]} 19. Kxg2 {[%emt 0:00:47]} Qe6 {[%emt 0:04:14]} 20. Qxa5 {[%emt 0:18:48]} Ra8 {[%emt 0:00:44]} 21. Qxb5 {[%emt 0:00:09] And now Rc6 would win.} Rxa2 {[%emt 0:00:07]} 22. Bd4 {[%emt 0:00:18]} Bxe5 {[%emt 0:01:27]} 23. Rc6 {[%emt 0:00:54]} Bd6 {[%emt 0:01:16] aiming for ...Qe4+.} 24. Qd3 {[%emt 0:00:13]} Qd7 {[%emt 0:06:31]} 25. Rfc1 {[%emt 0:02:40][%cal Ob3b4]} Rb8 $40 {[%emt 0:03:23][%mdl 128] White needs to defend precisely.} 26. Qb1 {[%emt 0:11:11]} Raa8 {[%emt 0:02:21]} 27. Qc2 {[%emt 0:04:30]} Kh7 {[%emt 0:00:50]} 28. Bb2 {[%emt 0:04:00]} Qb7 {[%emt 0:05:05]} (28... Ra2 {feels hotter.} 29. Qb1 Ra5 30. Qd3 Rab5) 29. Qc3 {[%emt 0:00:18][%csl Gb2][%cal Rc3g7]} f6 {[%emt 0:00:05] White must now prevent ...Be5.} (29... Qxb3 $2 30. Qg7#) 30. Qd3 {[%emt 0:01:01]} Ra2 {[%emt 0:02:31]} 31. Bxf6 {[%emt 0:00:46][%mdl 8192] [#] White does not recover from this.} Rf8 $1 $19 {[%emt 0:01:10]} 32. Rxd6 $2 {[%emt 0:00:42]} ({Worse is} 32. Qxd5 Rxf6 33. Rf1 (33. Rxd6 $2 Rfxf2+ 34. Kg1 Qb8 $19) 33... Bxg3 $19) (32. R1c2 Rxc2 33. Rxc2 Rxf6 34. Ra2) 32... exd6 {[%emt 0:00:01]} 33. Qb1 {[%emt 0:00:32]} Rd2 {[%emt 0:00:55]} 34. Qa1 {[%emt 0:00:02]} d4+ {[%emt 0:00:07] Weighted Error Value: White=0.69/Black=0.05 (flawless)} ({But not} 34... Qxb3 35. Qa7+) 0-1

[Event "Israeli Team-ch 2023"]
[Site "Petah Tikva"]
[Date "2023.02.10"]
[Round "7.9"]
[White "Zanan, Evgeny"]
[Black "Gruenfeld, Yehuda"]
[Result "1-0"]
[ECO "B60"]
[WhiteElo "2483"]
[BlackElo "2414"]
[Annotator "TA"]
[PlyCount "85"]
[EventDate "2023.01.13"]
[EventCountry "ISR"]
[SourceTitle "playchess.com"]
[Source "ChessBase"]
[SourceQuality "1"]
[TimeControl "40/5400+30:1800+30"]

{[%evp 11,85,18,57,24,13,17,48,39,53,43,43,21,119,120,126,122,114,107,112,105,111,116,106,110,116,109,112,107,110,106,114,111,120,110,122,120,159,156,204,217,217,211,247,269,266,271,269,262,262,260,308,302,313,309,299,277,312,325,303,276,396,383,533,525,29972,29976,29975,29977,29977,29979,29981,29982,29982,29983,29983,29984]} 1. e4 {[%emt 0:03:03]} c5 {[%emt 0:00:05]} 2. Nf3 {[%emt 0:00:12]} d6 {[%emt 0:00:07]} 3. d4 {[%emt 0:00:04]} cxd4 {[%emt 0:00:02]} 4. Nxd4 {[%emt 0:00:05]} Nf6 {[%emt 0:00:04]} 5. Nc3 {[%emt 0:00:05]} a6 {[%emt 0:00:07]} 6. Bg5 {[%emt 0:00:06]} Nc6 {[%emt 0:02:17]} 7. Nxc6 {[%emt 0:03:25] B60: Sicilian: Richter-Rauzer: Unusual Black 6th moves and 6...Bd7 without 7 Qd2.} bxc6 {[%emt 0:00:08]} 8. Bc4 {[%emt 0:00:02]} Qa5 {[%emt 0:09:39]} 9. Qd2 {[%emt 0:10:46] White is slightly better.} e6 {[%emt 0:17:07]} 10. Bb3 {[%emt 0:11:17]} Be7 {[%emt 0:01:23]} 11. O-O {[%emt 0:04:17]} (11. O-O-O $5) 11... O-O {[%emt 0:05:41] [#] White stays focused until the end.} (11... Qc7 $11 {remains equal.}) 12. Nd5 $1 $16 {[%emt 0:04:59][%mdl 576] Discovered Attack} Qd8 {[%emt 0:00:34]} 13. Nxe7+ {[%emt 0:00:13]} Qxe7 {[%emt 0:00:05]} 14. Rad1 {[%emt 0:00:41]} a5 {[%emt 0:01:02]} 15. Rfe1 {[%emt 0:08:54]} (15. Qxd6 $2 Qxd6 16. Rxd6 Nxe4 $19) 15... a4 {[%emt 0:02:19]} 16. Bc4 {[%emt 0:05:40]} (16. Qxd6 Qxd6 17. Rxd6 axb3 $19) 16... h6 {[%emt 0:00:07] [#]} 17. Bh4 {[%emt 0:01:02] [#] White has more active pieces. The black rooks are badly placed.} (17. Qxd6 $2 Qxd6 18. Rxd6 hxg5 $19) (17. Bxf6 Qxf6 18. Qxd6 Qxb2 $14) 17... Ba6 $146 {[%emt 0:00:51]} ({Predecessor:} 17... g5 18. Bxg5 hxg5 19. Qxg5+ Kh8 20. Re3 Ra7 21. Rh3+ Nh7 22. Rxh7+ Kxh7 23. Qh5+ Kg7 {½-½ Kuegel,T (1939)-Hoette,P (1942) GER-ch U16 Oberhof 2010 (9)}) 18. Bxa6 {[%emt 0:01:46]} (18. Qxd6 $2 {is the wrong capture.} Qxd6 19. Rxd6 Bxc4 $19) 18... Rxa6 {[%emt 0:00:05]} 19. Qxd6 {[%emt 0:00:59]} Qxd6 {[%emt 0:00:22]} 20. Rxd6 {[%emt 0:00:15]} Rb8 {[%emt 0:00:23] Black is weak on the dark squares} 21. Bxf6 {[%emt 0:01:43]} gxf6 {[%emt 0:00:07][%mdl 4096] Endgame KRR-KRR} 22. b3 {[%emt 0:00:02]} axb3 {[%emt 0:00:23]} 23. axb3 {[%emt 0:00:18]} Rba8 {[%emt 0:00:49]} 24. f3 {[%emt 0:07:57]} c5 {[%emt 0:00:46]} (24... Kf8 $16 {is a better defense.} 25. Kf2 c5 26. Rxa6 Rxa6) 25. Rxa6 $18 {[%emt 0:03:57]} Rxa6 {[%emt 0:00:08] KR-KR} 26. Re3 {[%emt 0:00:27]} Kg7 {[%emt 0:00:50]} 27. Rc3 {[%emt 0:02:19]} Ra5 {[%emt 0:00:07]} 28. Kf2 {[%emt 0:00:17]} Kg6 {[%emt 0:00:34]} 29. Rc4 {[%emt 0:02:13]} f5 {[%emt 0:00:26]} 30. Ke3 {[%emt 0:00:52]} fxe4 {[%emt 0:00:14]} 31. Kxe4 {[%emt 0:00:50]} ({Much less strong is} 31. Rxe4 $6 Ra1 32. Rc4 Ra5 $18) 31... Kf6 {[%emt 0:00:48]} 32. Kd3 {[%emt 0:06:34]} Rb5 {[%emt 0:00:13]} 33. Rf4+ {[%emt 0:01:55]} Kg6 {[%emt 0:00:20]} 34. Ra4 {[%emt 0:00:00]} Rb7 {[%emt 0:00:24]} 35. Kc4 {[%emt 0:02:04]} Rd7 {[%emt 0:00:03]} (35... Kf6 $142 36. c3 (36. Kxc5 Rc7+ 37. Kd6 Rxc2 $18) 36... Ke7) 36. c3 {[%emt 0:00:11]} Rd2 {[%emt 0:00:07]} 37. Kxc5 {[%emt 0:00:08] Strongly threatening b4.} Rxg2 {[%emt 0:00:03]} 38. Rg4+ {[%emt 0:03:16] White mates.} Rxg4 {[%emt 0:00:10]} 39. fxg4 {[%emt 0:00:05]} f5 {[%emt 0:00:08]} 40. gxf5+ {[%emt 0:01:58]} Kxf5 {[%emt 0:00:21]} 41. b4 {[%emt 0:30:24][%cal Bb3b4,Bb4b5][%mdl 32]} e5 {[%emt 0:30:04]} 42. b5 {[%emt 0:00:05]} e4 {[%emt 0:00:02]} 43. Kd4 {[%emt 0:00:08] Weighted Error Value: White=0.04 (flawless) /Black=0.43} 1-0

[Event "Israeli Team-ch 2023"]
[Site "Petah Tikva"]
[Date "2023.02.10"]
[Round "7.10"]
[White "Musyuk, Lior"]
[Black "Kaspi, Alexander"]
[Result "0-1"]
[ECO "A05"]
[WhiteElo "2341"]
[BlackElo "2412"]
[Annotator "TA"]
[PlyCount "74"]
[EventDate "2023.01.13"]
[EventCountry "ISR"]
[SourceTitle "playchess.com"]
[Source "ChessBase"]
[SourceQuality "1"]
[TimeControl "40/5400+30:1800+30"]

{[%evp 13,74,19,12,-22,0,-6,0,-40,-8,-33,17,19,25,-27,-27,-36,-11,-7,-18,-19,0,0,0,-11,-4,-104,-130,-113,-47,-50,0,0,0,-2,0,-8,0,0,0,0,-5,0,-15,-35,-33,-147,-150,-134,-78,-67,-8,-8,-19,-775,-432,-550,-545,-543,-540,-531,-519,-806,-540]} 1. Nf3 {[%emt 0:00:30]} Nf6 {[%emt 0:04:51]} 2. g3 {[%emt 0:00:17]} b5 {[%emt 0:00:16]} 3. Bg2 {[%emt 0:01:01]} Bb7 {[%emt 0:01:21]} 4. O-O {[%emt 0:01:55]} e6 {[%emt 0:00:43]} 5. d3 {[%emt 0:02:01]} c5 {[%emt 0:00:46]} 6. e4 {[%emt 0:00:26]} d6 {[%emt 0:00:06]} 7. a4 {[%emt 0:01:55]} b4 {[%emt 0:00:43] [#]} 8. Nh4 $146 {[%emt 0:02:45] A05: Réti Opening: 1 Nf3 Nf6.} ({Predecessor:} 8. a5 Be7 9. Nbd2 O-O 10. Nc4 Nfd7 11. Bf4 Qc7 12. Re1 a6 13. e5 dxe5 14. Nfxe5 Nxe5 15. Bxe5 Qc6 16. Bxc6 Nxc6 {½-½ Praggnanandhaa,R (2608)-Andreikin,D (2724) Titled Tuesday intern op 03rd Aug blitz 2021 (10)}) 8... Qc7 {[%emt 0:03:00]} 9. f4 {[%emt 0:02:42]} Nc6 {[%emt 0:02:57]} 10. c3 {[%emt 0:12:08] The position is equal.} a5 {[%emt 0:19:59]} 11. Be3 {[%emt 0:04:32]} Ne7 {[%emt 0:04:35]} (11... Ba6 $15) 12. Nd2 {[%emt 0:09:21]} Ng6 {[%emt 0:01:19]} 13. d4 {[%emt 0:06:06]} (13. Nhf3 $142) 13... Nxh4 $11 {[%emt 0:00:42]} 14. gxh4 {[%emt 0:00:47]} h5 {[%emt 0:07:04]} 15. h3 {[%emt 0:03:30] Inhibits Ng4.} Be7 {[%emt 0:00:36]} 16. Rc1 {[%emt 0:03:16]} Rc8 {[%emt 0:08:59]} 17. cxb4 {[%emt 0:45:48]} axb4 {[%emt 0:00:16]} 18. Re1 {[%emt 0:00:00]} (18. f5 $5 {[%cal Rf5e6]}) 18... Qb8 {[%emt 0:01:14]} 19. d5 {[%emt 0:00:00]} exd5 $17 {[%emt 0:01:01]} 20. exd5 {[%emt 0:00:00]} O-O {[%emt 0:08:52]} (20... Nxd5 21. Nc4 Nxe3 22. Rxe3 $14) ({Black should try} 20... Bxd5 $17 21. Bxd5 Nxd5) 21. Nc4 $15 {[%emt 0:00:00]} Bd8 {[%emt 0:00:42]} (21... Rfe8 $15 {should be considered.}) 22. f5 $11 {[%emt 0:00:00]} Ba6 {[%emt 0:00:20]} 23. Bg5 {[%emt 0:00:00]} Qc7 {[%emt 0:02:23]} 24. b3 {[%emt 0:00:00]} Bxc4 {[%emt 0:05:22]} (24... Re8 {keeps more tension.} 25. Rxe8+ Nxe8 26. Qxh5 Bf6) 25. Rxc4 {[%emt 0:00:00]} Qd7 {[%emt 0:00:12]} 26. Qf3 {[%emt 0:00:00]} Re8 {[%emt 0:05:08]} 27. Rxe8+ {[%emt 0:00:16]} Qxe8 {[%emt 0:00:35]} 28. Qg3 {[%emt 0:00:39]} Qd7 {[%emt 0:04:57]} (28... Nd7 {feels hotter.} 29. Re4 Ne5 30. Bh6 Bf6) 29. Rc1 {[%emt 0:02:24] [#]} (29. Qf3 $15) 29... c4 $1 $17 {[%emt 0:05:01]} 30. bxc4 {[%emt 0:00:36]} Qxf5 {[%emt 0:02:50]} (30... Qxa4 $142 {Threatens to win with ...Bb6+.} 31. Kh2 (31. Qxd6 $2 b3 $19) 31... Qa2) 31. Qxd6 {[%emt 0:01:44]} b3 {[%emt 0:02:05]} (31... Ne4 $1 $15 32. Qf4 (32. Qxb4 $2 {loses.} Qf2+ 33. Kh1 Qd4 $19) (32. Bxe4 $2 Qxe4 33. Qg3 Bb6+ 34. Kh2 Qd4 $19) 32... Bb6+ 33. c5 Rxc5 34. Qb8+ (34. Qxf5 $2 Rxc1+ {[%mdl 64] Discovered Attack (Double check)} 35. Kh2 Bg1+ 36. Kh1 Ng3#) 34... Qc8 35. Qxc8+ Rxc8+ 36. Kf1 Nc3) 32. Qb4 $36 {[%emt 0:00:13][%mdl 2048] White has some pressure.} Qd3 {[%emt 0:01:38]} 33. Rc3 $2 {[%emt 0:01:32][%mdl 8192] This move loses the game for White.} (33. Qc3 $11 Bb6+ 34. Kh1 Qxc3 {[%mdl 64] Remove Defender} 35. Rxc3) 33... Qd1+ {[%emt 0:00:39] Black is clearly winning.} 34. Bf1 {[%emt 0:00:06]} Ne4 $1 {[%emt 0:01:28][%csl LRc3,LRg5][%mdl 64] [#] Hoping for ...Qe1. Discovered Attack} 35. Qxb3 {[%emt 0:00:53]} Qd4+ {[%emt 0:00:54]} ({Weaker is} 35... Nxc3 36. Qxc3 Bxg5 37. hxg5 $19) 36. Re3 {[%emt 0:00:07] Black must now prevent Bxd8.} Nxg5 {[%emt 0:00:05]} 37. Kh1 {[%emt 0:00:29]} (37. Kg2 $142 Bb6 38. hxg5 Qxe3 39. Qxe3 Bxe3 40. Kf3 Bxg5 41. Ke4) 37... Bb6 {[%emt 0:00:21] Weighted Error Value: White=0.48/Black=0.27 (precise)} 0-1